fUSD/lending_fUSD_20260323
["ID","MTS","AMOUNT","RATE_DAILY","PERIOD"]
[408817140,1774295440055,-33377.30372108,0.00019286,2]
[408817141,1774295440065,-790.0,0.00019468,5]
[408817142,1774295440074,-311.00890211,0.00019601,2]
[408817143,1774295440084,-2000.0,0.00019719,2]
[408817144,1774295440094,-660.0,0.00019798,5]
[408817145,1774295440104,-22620.1742883,0.00020522,2]
[408817146,1774295440114,-2000.0,0.000208,2]
[408817147,1774295440124,-150.0,0.00020973,2]
[408817148,1774295440134,-188524.8434196,0.00020982,2]
[408817149,1774295440143,-5931.9763359,0.00020982,2]
[408817150,1774295440154,-169.749337,0.00020982,2]
[408817151,1774295440164,-169.749337,0.00020982,2]
[408817152,1774295440174,-169.749337,0.00020982,2]
[408817153,1774295440187,-151.0,0.00020982,2]
[408817154,1774295440198,-169.749337,0.00020982,2]
[408817155,1774295440207,-151.0,0.00020982,2]
[408817156,1774295440217,-151.0,0.00020982,2]
[408817157,1774295440226,-181.295673,0.00020982,2]
[408817158,1774295440236,-181.295673,0.00020982,2]
[408817159,1774295440246,-181.295673,0.00020982,2]
[408817160,1774295440256,-181.295673,0.00020982,2]
[408817161,1774295440266,-151.0,0.00020982,2]
[408817162,1774295440275,-151.0,0.00020982,2]
[408817163,1774295440284,-151.0,0.00020982,2]
[408817164,1774295440294,-345.93097207,0.00021096,2]
[408817165,1774295440303,-5047.2431115,0.00021321,2]
[408817166,1774295440313,-150.0,0.00021521,2]
[408817167,1774295440322,-5000.0,0.00021918,2]
[408817168,1774295440332,-168.0,0.00022,2]
[408817169,1774295440341,-150.07533915,0.00022068,2]
[408817170,1774295440353,-2000.0,0.00022184,2]
[408817171,1774295440362,-515.0,0.0002225,9]
[408817172,1774295440371,-443.2,0.00022456,2]
[408817173,1774295440381,-33377.30372108,0.00022671,2]
[408817174,1774295440390,-168.0,0.00023,2]
[408817175,1774295440400,-200.0,0.00023662,2]
[408817176,1774295440410,-630.01,0.00023801,2]
[408817177,1774295440420,-168.0,0.00024,2]
[408817178,1774295440429,-10021.49792295,0.00024475,2]
[408817179,1774295440439,-2000.0,0.000245,2]
[408817180,1774295440448,-200.0,0.00024537,2]
[408817181,1774295440458,-223.63,0.00024548,3]
[408817182,1774295440468,-1323.6028298,0.00024574,2]
[408817183,1774295440478,-177.7,0.00024574,2]
[408817184,1774295440487,-2000.0,0.00024649,2]
[408817185,1774295440497,-500.0,0.00024657,2]
[408817186,1774295440506,-569.62838628,0.00024657,2]
[408817187,1774295440516,-486.01390975,0.00024657,2]
[408817188,1774295440525,-1000.0,0.00024658,2]
[408817189,1774295440535,-150.0,0.00024658,2]
[408817190,1774295440545,-4894.61,0.00024664,2]
[408817193,1774295440555,-160.21004736,0.00024873,2]
[408817194,1774295440565,-150.0,0.00024873,2]
[408817195,1774295440578,-160.0,0.000249,3]
[408817196,1774295440588,-151.0,0.000249,2]
[408817197,1774295440597,-151.0,0.000249,2]
[408817198,1774295440607,-151.0,0.000249,2]
[408817199,1774295440618,-151.0,0.000249,2]
[408817200,1774295440630,-151.0,0.000249,2]
[408817201,1774295440639,-151.0,0.000249,2]
[408817202,1774295440649,-151.0,0.000249,2]
[408817203,1774295440661,-151.0,0.000249,2]
[408817204,1774295440671,-151.0,0.000249,2]
[408817205,1774295440681,-151.0,0.000249,2]
[408817206,1774295440691,-151.0,0.000249,2]
[408817207,1774295440701,-151.0,0.000249,2]
[408817208,1774295440710,-224.640124,0.000249,2]
[408817209,1774295440720,-151.0,0.000249,2]
[408817210,1774295440728,-151.0,0.000249,2]
[408817211,1774295440737,-178.06937,0.000249,2]
[408817212,1774295440746,-244.220628,0.000249,2]
[408817213,1774295440755,-178.06937,0.000249,2]
[408817214,1774295440764,-244.220628,0.000249,2]
[408817215,1774295440772,-178.06937,0.000249,2]
[408817216,1774295440780,-178.06937,0.000249,2]
[408817217,1774295440789,-244.220628,0.000249,2]
[408817218,1774295440797,-244.220628,0.000249,2]
[408817219,1774295440806,-151.0,0.000249,2]
[408817220,1774295440815,-151.0,0.000249,2]
[408817221,1774295440823,-2500.0,0.000249,9]
[408817222,1774295440832,-200.109732,0.000249,2]
[408817223,1774295440841,-200.109732,0.000249,2]
[408817224,1774295440851,-200.109732,0.000249,2]
[408817225,1774295440860,-200.109732,0.000249,2]
[408817226,1774295440869,-151.0,0.000249,2]
[408817227,1774295440878,-168.0,0.00025,2]
[408817228,1774295440888,-240.71,0.00025066,2]
[408817229,1774295440898,-599.60298507,0.00025284,2]
[408817230,1774295440907,-483.26661068,0.00025284,2]
[408817231,1774295440916,-295.3357113,0.00025375,2]
[408817232,1774295440925,-401.0,0.00025401,5]
[408817233,1774295440934,-42065.5785041,0.00025402,2]
[408817234,1774295440943,-169.749337,0.00025402,2]
[408817235,1774295440953,-169.749337,0.00025402,2]
[408817236,1774295440963,-169.749337,0.00025402,2]
[408817237,1774295440975,-151.0,0.00025402,2]
[408817238,1774295440985,-169.749337,0.00025402,2]
[408817239,1774295440994,-151.0,0.00025402,2]
[408817240,1774295441003,-151.0,0.00025402,2]
[408817241,1774295441012,-181.295673,0.00025402,2]
[408817242,1774295441021,-181.295673,0.00025402,2]
[408817243,1774295441031,-181.295673,0.00025402,2]
[408817244,1774295441040,-181.295673,0.00025402,2]
[408817245,1774295441049,-151.0,0.00025402,2]
[408817246,1774295441059,-166.007109,0.00025402,2]
[408817247,1774295441068,-250.0,0.00025421,2]
[408817248,1774295441077,-702.69,0.000255,7]
[408817249,1774295441087,-151.0,0.00025589,2]
[408817250,1774295441096,-151.0,0.00025589,2]
[408817251,1774295441105,-151.0,0.00025589,2]
[408817252,1774295441114,-151.0,0.00025589,2]
[408817253,1774295441124,-151.0,0.00025589,2]
[408817254,1774295441133,-151.0,0.00025589,2]
[408817255,1774295441143,-151.0,0.00025589,2]
[408817256,1774295441153,-151.0,0.00025589,2]
[408817257,1774295441163,-178.06937,0.00025589,2]
[408817258,1774295441172,-244.220628,0.00025589,2]
[408817259,1774295441182,-178.06937,0.00025589,2]
[408817260,1774295441192,-244.220628,0.00025589,2]
[408817261,1774295441201,-178.06937,0.00025589,2]
[408817262,1774295441211,-178.06937,0.00025589,2]
[408817263,1774295441220,-244.220628,0.00025589,2]
[408817264,1774295441229,-244.220628,0.00025589,2]
[408817265,1774295441239,-151.0,0.00025589,2]
[408817266,1774295441249,-200.109732,0.00025589,2]
[408817267,1774295441258,-200.109732,0.00025589,2]
[408817268,1774295441267,-200.109732,0.00025589,2]
[408817269,1774295441276,-200.109732,0.00025589,2]
[408817270,1774295441286,-386.642,0.00025592,2]
[408817271,1774295441295,-681.762,0.00025592,2]
[408817272,1774295441305,-886.762,0.00025592,2]
[408817273,1774295441315,-2466.0,0.00025592,2]
[408817274,1774295441324,-924.0,0.00025592,2]
[408817275,1774295441333,-533.31463996,0.000256,2]
[408817276,1774295441345,-151.0,0.000256,2]
[408817277,1774295441355,-151.0,0.000256,2]
[408817278,1774295441364,-154.011755,0.000256,2]
[408817279,1774295441374,-5000.0,0.000256,2]
[408817280,1774295441383,-3918.418818,0.000256,2]
[408817281,1774295441393,-700.0,0.00025615,2]
[408817282,1774295441402,-325.0,0.0002569,5]
[408817283,1774295441412,-5000.0,0.000257,9]
[408817284,1774295441422,-7500.0,0.000258,9]
[408817285,1774295441431,-160.56,0.00025857,2]
[408817286,1774295441440,-151.0,0.0002589,2]
[408817287,1774295441450,-150.0,0.0002589,2]
[408817288,1774295441459,-10100.0,0.000259,9]
[408817289,1774295441469,-350.0,0.00025968,2]
[408817290,1774295441478,-168.0,0.00026,2]
[408817291,1774295441487,-33377.30372108,0.00026057,2]
[408817292,1774295441497,-7243.0,0.00026219,2]
[408817293,1774295441506,-4453.0,0.00026247,2]
[408817294,1774295441515,-151.0,0.00026248,2]
[408817295,1774295441525,-151.0,0.00026248,2]
[408817296,1774295441534,-864.21,0.00026248,2]
[408817297,1774295441544,-864.21,0.00026248,2]
[408817298,1774295441554,-864.21,0.00026248,2]
[408817299,1774295441563,-864.21,0.00026248,2]
[408817300,1774295441573,-864.21,0.00026248,2]
[408817301,1774295441583,-864.21,0.00026248,2]
[408817302,1774295441592,-1591.38,0.00026248,2]
[408817303,1774295441601,-503.01706708,0.00026258,2]
[408817304,1774295441611,-151.0,0.00026258,2]
[408817305,1774295441625,-151.0,0.00026258,2]
[408817306,1774295441644,-294.83957,0.00026258,2]
[408817307,1774295441667,-244.220628,0.00026258,2]
[408817308,1774295441683,-244.220628,0.00026258,2]
[408817309,1774295441693,-244.220628,0.00026258,2]
[408817310,1774295441702,-244.220628,0.00026258,2]
[408817311,1774295441711,-160.0,0.00026258,3]
[408817312,1774295441721,-151.0,0.00026259,2]
[408817313,1774295441731,-166.833725,0.00026259,2]
[408817314,1774295441740,-151.0,0.00026259,2]
[408817315,1774295441750,-151.0,0.00026259,2]
[408817316,1774295441759,-151.0,0.00026259,2]
[408817317,1774295441768,-151.0,0.00026259,2]
[408817318,1774295441777,-151.0,0.00026259,2]
[408817319,1774295441787,-178.06937,0.00026259,2]
[408817320,1774295441796,-244.220628,0.00026259,2]
[408817321,1774295441805,-178.06937,0.00026259,2]
[408817322,1774295441815,-244.220628,0.00026259,2]
[408817323,1774295441825,-178.06937,0.00026259,2]
[408817324,1774295441835,-178.06937,0.00026259,2]
[408817325,1774295441845,-244.220628,0.00026259,2]
[408817326,1774295441855,-244.220628,0.00026259,2]
[408817327,1774295441864,-151.0,0.00026259,2]
[408817328,1774295441873,-200.109732,0.00026259,2]
[408817329,1774295441882,-200.109732,0.00026259,2]
[408817330,1774295441892,-200.109732,0.00026259,2]
[408817331,1774295441901,-200.109732,0.00026259,2]
[408817332,1774295441912,-500.0,0.00026267,2]
[408817333,1774295441921,-151.0,0.00026268,2]
[408817334,1774295441931,-151.0,0.00026268,2]
[408817335,1774295441942,-186.455163,0.00026268,2]
[408817336,1774295441952,-151.0,0.00026268,2]
[408817337,1774295441962,-151.0,0.00026268,2]
[408817338,1774295441971,-151.0,0.00026268,2]
[408817339,1774295441980,-151.0,0.00026268,2]
[408817340,1774295441991,-158.642776,0.00026268,2]
[408817341,1774295442001,-151.0,0.00026268,2]
[408817342,1774295442010,-151.0,0.00026268,2]
[408817343,1774295442020,-178.06937,0.00026268,2]
[408817344,1774295442029,-178.06937,0.00026268,2]
[408817345,1774295442039,-244.220628,0.00026268,2]
[408817346,1774295442048,-178.06937,0.00026268,2]
[408817347,1774295442058,-178.06937,0.00026268,2]
[408817348,1774295442067,-178.06937,0.00026268,2]
[408817349,1774295442077,-178.06937,0.00026268,2]
[408817350,1774295442087,-244.220628,0.00026268,2]
[408817351,1774295442096,-178.06937,0.00026268,2]
[408817352,1774295442105,-178.06937,0.00026268,2]
[408817353,1774295442115,-244.220628,0.00026268,2]
[408817354,1774295442124,-244.220624,0.00026268,2]
[408817355,1774295442134,-151.0,0.00026268,2]
[408817356,1774295442144,-151.0,0.00026268,2]
[408817357,1774295442153,-200.109732,0.00026268,2]
[408817358,1774295442164,-200.109732,0.00026268,2]
[408817359,1774295442174,-200.109732,0.00026268,2]
[408817360,1774295442183,-200.109732,0.00026268,2]
[408817361,1774295442193,-200.109732,0.00026268,2]
[408817362,1774295442202,-200.109732,0.00026268,2]
[408817364,1774295442211,-200.109732,0.00026268,2]
[408817366,1774295442221,-200.109736,0.00026268,2]
[408817367,1774295442230,-169.749337,0.00026268,2]
[408817368,1774295442240,-169.749337,0.00026268,2]
[408817369,1774295442250,-169.749337,0.00026268,2]
[408817370,1774295442260,-151.0,0.00026268,2]
[408817371,1774295442270,-169.749337,0.00026268,2]
[408817372,1774295442279,-151.0,0.00026268,2]
[408817373,1774295442289,-151.0,0.00026268,2]
[408817374,1774295442298,-181.295673,0.00026268,2]
[408817375,1774295442307,-181.295673,0.00026268,2]
[408817377,1774295442316,-181.295673,0.00026268,2]
[408817379,1774295442326,-181.295673,0.00026268,2]
[408817380,1774295442350,-151.0,0.00026268,2]
[408817381,1774295442366,-286.56,0.000263,7]
[408817382,1774295442378,-9386.0992683,0.00026388,2]
[408817383,1774295442388,-177.986,0.00026478,90]
[408817384,1774295442398,-1500.0,0.00026478,120]
[408817385,1774295442411,-1500.0,0.00026478,120]
[408817386,1774295442423,-1500.0,0.00026478,120]
[408817388,1774295442434,-942.037,0.00026478,120]
[408817390,1774295442444,-1000.0,0.00026479,120]
[408817393,1774295442454,-1000.0,0.00026479,120]
[408817394,1774295442466,-174.937,0.00026479,120]
[408817395,1774295442478,-200.0,0.00026579,2]
[408817396,1774295442488,-500.0,0.00026579,2]
[408817398,1774295442499,-160.11,0.000266,7]
[408817400,1774295442508,-500.0,0.00026668,2]
[408817411,1774295443001,-531.11132271,0.00026668,2]
[408817412,1774295443012,-151.0,0.00026679,2]
[408817413,1774295443021,-324.43874266,0.00026679,2]
[408817414,1774295443031,-250.0,0.00026685,8]
[408817415,1774295443046,-168.0,0.00026741,2]
[408817416,1774295443056,-630.01,0.00026776,120]
[408817417,1774295443066,-200.0,0.00026845,2]
[408817418,1774295443076,-350.0,0.00026863,2]
[408817419,1774295443089,-152.25,0.00026929,2]
[408817420,1774295443099,-800.0,0.00026986,120]
[408817421,1774295443108,-168.0,0.00027,2]
[408817422,1774295443118,-168.0,0.00027009,2]
[408817423,1774295443129,-200.0,0.00027113,2]
[408817424,1774295443140,-2000.0,0.00027114,2]
[408817425,1774295443150,-150.0,0.00027185,2]
[408817426,1774295443162,-702.69,0.000272,7]
[408817427,1774295443175,-240.71,0.00027229,2]
[408817428,1774295443186,-11506.45,0.000273,7]
[408817429,1774295443196,-160.0,0.000273,7]
[408817430,1774295443206,-4188.61,0.00027302,2]
[408817431,1774295443215,-10021.49792295,0.00027323,2]
[408817432,1774295443224,-300.0,0.00027397,2]
[408817433,1774295443235,-151.0,0.00027397,2]
[408817434,1774295443246,-151.0,0.00027397,2]
[408817435,1774295443257,-250.906637,0.00027397,2]
[408817436,1774295443268,-979.16666667,0.000274,10]
[408817437,1774295443279,-168.0,0.00027425,2]
[408817438,1774295443290,-168.0,0.00027582,2]
[408817439,1774295443300,-979.16666667,0.000277,7]
[408817440,1774295443311,-168.0,0.00027751,2]
[408817441,1774295443322,-350.0,0.00027797,2]
[408817442,1774295443333,-350.0,0.00028091,2]
[408817443,1774295443344,-168.0,0.00028106,2]
[408817444,1774295443354,-2000.0,0.000282,2]
[408817445,1774295443364,-286.56,0.000282,7]
[408817446,1774295443374,-4188.61,0.00028439,2]
[408817447,1774295443385,-168.0,0.00028466,2]
[408817448,1774295443394,-150.0,0.00028544,2]
[408817449,1774295443404,-924.0,0.00028592,2]
[408817450,1774295443414,-168.0,0.00028732,2]
[408817451,1774295443424,-350.0,0.0002903,2]
[408817452,1774295443433,-533.31463996,0.00029067,2]
[408817453,1774295443445,-162.62825463,0.00029307,2]
[408817454,1774295443456,-240.71,0.00029392,2]
[408817455,1774295443466,-190.91115318,0.00029432,2]
[408817456,1774295443476,-169.749337,0.00029442,7]
[408817457,1774295443488,-169.749337,0.00029442,7]
[408817458,1774295443498,-169.749337,0.00029442,7]
[408817459,1774295443508,-151.0,0.00029442,7]
[408817460,1774295443520,-169.749337,0.00029442,7]
[408817461,1774295443529,-151.0,0.00029442,7]
[408817462,1774295443540,-211.499648,0.00029442,7]
[408817463,1774295443550,-181.295673,0.00029442,7]
[408817464,1774295443561,-181.295673,0.00029442,7]
[408817465,1774295443571,-181.295673,0.00029442,7]
[408817466,1774295443581,-181.295673,0.00029442,7]
[408817467,1774295443592,-151.0,0.00029442,7]
[408817468,1774295443602,-33377.30372108,0.00029442,2]
[408817469,1774295443612,-702.69,0.000295,7]
[408817470,1774295443626,-4188.61,0.00029577,2]
[408817471,1774295443637,-2000.0,0.00029579,2]
[408817472,1774295443648,-630.01,0.00029752,120]
[408817473,1774295443661,-152.25,0.00029921,2]
[408817474,1774295443671,-150.0,0.00029971,2]
[408817475,1774295443682,-4815.3863144,0.0003,5]
[408817476,1774295443695,-10021.49792295,0.0003017,2]
[408817477,1774295443706,-179.09,0.00030411,120]
[408817478,1774295443715,-11506.45,0.000305,7]
[408817479,1774295443725,-286.56,0.000305,7]
[408817480,1774295443737,-515.0,0.000305,16]
[408817481,1774295443747,-160.29235003,0.000307,10]
[408817482,1774295443757,-4188.61,0.00030714,2]
[408817483,1774295443767,-150.0,0.0003147,2]
[408817484,1774295443779,-240.71,0.00031554,2]
[408817485,1774295443788,-169.55,0.00031566,2]
[408817486,1774295443798,-924.0,0.00031592,2]
[408817487,1774295443809,-4188.61,0.00031852,2]
[408817488,1774295443820,-2000.0,0.000319,2]
[408817489,1774295443831,-533.31463996,0.00032533,2]
[408817490,1774295443842,-150.0,0.00032603,2]
[408817491,1774295443852,-150.0,0.00032603,2]
[408817492,1774295443862,-150.0,0.00032603,2]
[408817493,1774295443872,-163.87386076,0.00032603,2]
[408817494,1774295443883,-500.0,0.00032603,2]
[408817495,1774295443892,-500.0,0.00032603,2]
[408817496,1774295443901,-500.0,0.00032603,2]
[408817497,1774295443911,-500.0,0.00032603,2]
[408817498,1774295443920,-500.0,0.00032603,2]
[408817499,1774295443930,-500.0,0.00032603,2]
[408817500,1774295443939,-500.0,0.00032603,2]
[408817501,1774295443948,-500.0,0.00032603,2]
[408817502,1774295443957,-500.0,0.00032603,2]
[408817503,1774295443967,-500.0,0.00032603,2]
[408817504,1774295443976,-500.0,0.00032603,2]
[408817505,1774295443985,-500.0,0.00032603,2]
[408817506,1774295443995,-500.0,0.00032603,2]
[408817507,1774295444003,-484.98041623,0.00032603,2]
[408817508,1774295444012,-11506.45,0.000327,7]
[408817509,1774295444021,-630.01,0.00032727,120]
[408817510,1774295444030,-33377.30372108,0.00032828,2]
[408817511,1774295444040,-230.710639,0.00032877,7]
[408817512,1774295444049,-230.710639,0.00032877,7]
[408817513,1774295444061,-230.710639,0.00032877,7]
[408817514,1774295444071,-230.710639,0.00032877,7]
[408817515,1774295444080,-230.710639,0.00032877,7]
[408817516,1774295444090,-230.710639,0.00032877,7]
[408817517,1774295444100,-230.710639,0.00032877,7]
[408817518,1774295444109,-230.710639,0.00032877,7]
[408817519,1774295444118,-230.710639,0.00032877,7]
[408817520,1774295444127,-230.710639,0.00032877,7]
[408817521,1774295444136,-230.710639,0.00032877,7]
[408817522,1774295444145,-230.710639,0.00032877,7]
[408817523,1774295444155,-230.710639,0.00032877,7]
[408817524,1774295444164,-230.710639,0.00032877,7]
[408817525,1774295444174,-230.710639,0.00032877,7]
[408817526,1774295444183,-230.710639,0.00032877,7]
[408817527,1774295444192,-230.710639,0.00032877,7]
[408817528,1774295444202,-230.710639,0.00032877,7]
[408817529,1774295444211,-230.710639,0.00032877,7]
[408817530,1774295444220,-230.710637,0.00032877,7]
[408817531,1774295444230,-152.25,0.00032914,2]
[408817532,1774295444239,-4188.61,0.00032989,2]
[408817533,1774295444249,-246.0,0.00033,14]
[408817534,1774295444258,-702.69,0.00033,30]
[408817535,1774295444267,-151.0,0.00033,7]
[408817536,1774295444276,-10021.49792295,0.00033018,2]
[408817537,1774295444286,-169.749337,0.00033018,7]
[408817538,1774295444296,-169.749337,0.00033018,7]
[408817539,1774295444306,-169.749337,0.00033018,7]
[408817540,1774295444315,-151.0,0.00033018,7]
[408817541,1774295444325,-169.749337,0.00033018,7]
[408817542,1774295444334,-151.0,0.00033018,7]
[408817543,1774295444344,-181.295673,0.00033018,7]
[408817544,1774295444354,-181.295673,0.00033018,7]
[408817545,1774295444364,-181.295673,0.00033018,7]
[408817546,1774295444373,-181.295677,0.00033018,7]
[408817547,1774295444382,-150.0,0.00033043,2]
[408817548,1774295444393,-246.0,0.00033151,30]
[408817549,1774295444402,-290.0,0.00033294,5]
[408817550,1774295444412,-286.56,0.000336,30]
[408817551,1774295444421,-240.71,0.00033717,2]
[408817552,1774295444431,-161.0,0.00033898,11]
[408817553,1774295444440,-4188.61,0.00034127,2]
[408817554,1774295444449,-168.0,0.00034502,30]
[408817555,1774295444458,-154.0,0.00034503,30]
[408817556,1774295444467,-246.0,0.00034521,30]
[408817557,1774295444477,-1568.0,0.00034538,11]
[408817558,1774295444486,-924.0,0.00034592,2]
[408817559,1774295444496,-150.0,0.00034696,2]
[408817560,1774295444505,-656.19416686,0.00034839,5]
[408817561,1774295444515,-4188.61,0.00035264,2]
[408817562,1774295444525,-168.0,0.00035502,30]
[408817563,1774295444534,-161.0,0.00035503,30]
[408817564,1774295444543,-235.91,0.00035579,2]
[408817565,1774295444553,-11506.45,0.000356,7]
[408817566,1774295444562,-2000.0,0.000356,2]
[408817567,1774295444572,-705.51376982,0.00035616,120]
[408817568,1774295444581,-630.01,0.00035702,120]
[408817569,1774295444590,-5656.10739618,0.00035865,2]
[408817570,1774295444629,-4365.39052677,0.00035865,2]
[408817571,1774295444641,-240.71,0.0003588,2]
[408817572,1774295444652,-702.69,0.000359,30]
[408817573,1774295444662,-152.25,0.00035906,2]
[408817574,1774295444675,-533.31463996,0.00036,2]
[408817575,1774295444684,-979.16666667,0.00036,7]
[408817576,1774295444694,-33377.30372108,0.00036213,2]
[408817577,1774295444704,-151.0,0.00036217,7]
[408817578,1774295444713,-246.0,0.00036247,30]
[408817579,1774295444723,-286.56,0.000363,30]
[408817580,1774295444732,-4188.61,0.00036402,2]
[408817581,1774295444741,-150.0,0.0003643,2]
[408817582,1774295444751,-168.0,0.00036502,30]
[408817583,1774295444760,-168.0,0.00037502,30]
[408817584,1774295444769,-4188.61,0.0003754,2]
[408817585,1774295444779,-924.0,0.00037592,2]
[408817586,1774295444788,-912.0,0.00037668,2]
[408817587,1774295444797,-240.71,0.00038043,2]
[408817588,1774295444806,-150.0,0.00038252,2]
[408817589,1774295444815,-151.0,0.00038297,14]
[408817590,1774295444824,-11506.45,0.000383,7]
[408817591,1774295444834,-151.0,0.00038356,120]
[408817592,1774295444843,-151.0,0.00038356,120]
[408817593,1774295444854,-153.7323,0.00038356,120]
[408817594,1774295444863,-168.0,0.00038502,30]
[408817595,1774295444873,-986.297,0.00038536,52]
[408817596,1774295444882,-246.0,0.00038663,90]
[408817597,1774295444891,-4188.61,0.00038677,2]
[408817598,1774295444900,-10021.49792295,0.00038713,2]
[408817599,1774295444911,-515.0,0.0003875,23]
[408817600,1774295444920,-151.0,0.00038865,60]
[408817601,1774295444929,-500.0,0.00038865,60]
[408817602,1774295444938,-160.0,0.00039,7]
[408817603,1774295444947,-600.0,0.00039218,2]
[408817604,1774295444957,-600.0,0.00039218,2]
[408817605,1774295444966,-600.0,0.00039218,2]
[408817606,1774295444975,-600.0,0.00039218,2]
[408817607,1774295444983,-600.0,0.00039218,2]
[408817608,1774295444993,-600.0,0.00039218,2]
[408817609,1774295445002,-600.0,0.00039218,2]
[408817610,1774295445011,-600.0,0.00039218,2]
[408817611,1774295445020,-724.0,0.00039218,2]
[408817612,1774295445030,-232.91161484,0.00039218,120]
[408817613,1774295445039,-2000.0,0.000393,2]
[408817614,1774295445048,-286.56,0.000393,30]
[408817615,1774295445057,-702.69,0.000393,30]
[408817616,1774295445067,-533.31463996,0.00039467,2]
[408817617,1774295445077,-168.0,0.00039502,30]
[408817618,1774295445086,-300.0,0.00039562,2]
[408817619,1774295445095,-300.0,0.00039562,2]
[408817620,1774295445105,-300.0,0.00039562,2]
[408817621,1774295445114,-300.0,0.00039562,2]
[408817622,1774295445123,-300.0,0.00039562,2]
[408817623,1774295445131,-300.0,0.00039562,2]
[408817624,1774295445140,-300.0,0.00039562,2]
[408817625,1774295445150,-300.0,0.00039562,2]
[408817626,1774295445159,-300.0,0.00039562,2]
[408817627,1774295445169,-209.0,0.00039562,2]
[408817628,1774295445178,-33377.30372108,0.00039599,2]
[408817629,1774295445187,-400.0,0.00039603,2]
[408817630,1774295445197,-400.0,0.00039603,2]
[408817631,1774295445206,-400.0,0.00039603,2]
[408817632,1774295445215,-400.0,0.00039603,2]
[408817633,1774295445224,-400.0,0.00039603,2]
[408817634,1774295445233,-400.0,0.00039603,2]
[408817635,1774295445242,-400.0,0.00039603,2]
[408817636,1774295445251,-400.0,0.00039603,2]
[408817637,1774295445260,-400.0,0.00039603,2]
[408817638,1774295445270,-257.0,0.00039603,2]
[408817639,1774295445279,-685.98993686,0.00039712,6]
[408817640,1774295445289,-4188.61,0.00039815,2]
[408817641,1774295445298,-151.0,0.0004,120]
[408817642,1774295445307,-944.0,0.0004,30]
[408817643,1774295445316,-152.0,0.0004009,3]
[408817644,1774295445326,-150.0,0.00040165,2]
[408817645,1774295445335,-240.71,0.00040206,2]
[408817646,1774295445345,-168.0,0.00040502,30]
[408817647,1774295445354,-151.0,0.000409,120]
[408817648,1774295445363,-417.0,0.0004095,60]
[408817649,1774295445372,-4188.61,0.00040952,2]
[408817650,1774295445381,-506.10327782,0.00041068,120]
[408817651,1774295445391,-216.90140478,0.00041068,120]
[408817652,1774295445400,-246.0,0.00041079,90]
[408817653,1774295445409,-246.0,0.00041425,90]
[408817654,1774295445418,-11506.45,0.000415,7]
[408817655,1774295445427,-702.69,0.000415,30]
[408817656,1774295445436,-10021.49792295,0.0004156,15]
[408817657,1774295445445,-338.72085762,0.000418,120]
[408817658,1774295445454,-151.0,0.000419,120]
[408817659,1774295445463,-286.56,0.000419,30]
[408817660,1774295445472,-200.0,0.00041912,2]
[408817661,1774295445481,-5110.85,0.00042,120]